bitfinex-derivatives/quotes_BTCF0:USTF0_20250514
["timestamp","ask_amount","ask_price","bid_price","bid_amount"]
[1747253352020,0.71268383,103410.0,103400.0,1.0217193]
[1747253352220,1.16712383,103410.0,103400.0,0.8597193]
[1747253353123,1.0456158,103410.0,103400.0,1.0217193]
[1747253353425,0.84712383,103410.0,103400.0,1.0217193]
[1747253353825,1.16712383,103410.0,103400.0,1.0217193]
[1747253354223,0.84712383,103410.0,103400.0,1.0217193]
[1747253355827,0.4406958,103410.0,103400.0,1.14322733]
[1747253356230,0.2299758,103410.0,103400.0,1.0217193]
[1747253356429,0.38198383,103410.0,103400.0,1.0217193]
[1747253357127,0.2604758,103410.0,103400.0,1.0217193]
[1747253358531,0.2604758,103410.0,103400.0,1.00750162]
[1747253362233,0.2604758,103410.0,103400.0,1.12900965]
[1747253363135,0.2604758,103410.0,103400.0,1.00750162]
[1747253366435,0.2604758,103410.0,103400.0,0.64670162]
[1747253366635,0.2604758,103410.0,103400.0,1.36830162]
[1747253367535,0.4406558,103410.0,103400.0,1.61131768]
[1747253367730,0.4406558,103410.0,103400.0,1.48980965]
[1747253367927,0.2299758,103410.0,103400.0,1.48980965]
[1747253368528,0.2299758,103410.0,103400.0,1.49543036]
[1747253368727,0.2299758,103410.0,103400.0,1.61693839]
[1747253369541,0.2299758,103410.0,103400.0,1.61131768]
[1747253370737,0.2299758,103410.0,103400.0,1.63696573]
[1747253374837,0.2299758,103410.0,103400.0,1.5154577]
[1747253375040,0.2299758,103410.0,103400.0,1.63696573]
[1747253375245,0.2614758,103410.0,103400.0,1.63696573]
[1747253376555,0.2614758,103410.0,103400.0,1.5154577]
[1747253376742,0.2614758,103410.0,103400.0,1.63696573]
[1747253383147,0.2614758,103410.0,103400.0,1.48980965]
[1747253385162,0.2614758,103410.0,103400.0,1.49943518]
[1747253387949,0.2614758,103410.0,103400.0,1.48980965]
[1747253389064,0.2614758,103410.0,103400.0,1.36830162]
[1747253389254,0.2614758,103410.0,103400.0,1.48980965]
[1747253389661,0.2614758,103410.0,103400.0,1.36830162]
[1747253389853,0.2614758,103410.0,103400.0,1.48980965]
[1747253392957,0.2614758,103410.0,103400.0,1.12900965]
[1747253393161,0.2614758,103410.0,103400.0,1.48980965]
[1747253394468,0.2614758,103410.0,103400.0,1.63696573]
[1747253395964,0.2614758,103410.0,103400.0,1.5154577]
[1747253396151,0.2614758,103410.0,103400.0,1.63696573]
[1747253397164,0.2614758,103410.0,103400.0,1.5154577]
[1747253397366,0.2614758,103410.0,103400.0,1.63696573]
[1747253399868,0.0681,103410.0,103400.0,1.63696573]
[1747253400163,0.2614758,103410.0,103400.0,1.63696573]
[1747253400559,0.2614758,103410.0,103400.0,1.83317384]
[1747253402773,0.0681,103410.0,103400.0,1.83317384]
[1747253402972,0.2614758,103410.0,103400.0,1.83317384]
[1747253405365,0.2614758,103410.0,103400.0,1.71166581]
[1747253405872,0.2614758,103410.0,103400.0,1.83317384]
[1747253409174,0.01221648,103420.0,103400.0,1.85799537]
[1747253409359,0.17685529,103430.0,103420.0,0.1933571]
[1747253409563,0.17685529,103430.0,103420.0,0.79717316]
[1747253409873,0.17685529,103430.0,103420.0,0.77126513]
[1747253410068,0.37019369,103430.0,103420.0,1.02996757]
[1747253411073,0.37719369,103430.0,103420.0,1.03096757]
[1747253411668,0.38219369,103430.0,103420.0,1.03096757]
[1747253412581,0.41289369,103430.0,103420.0,1.03096757]
[1747253418569,0.21955529,103430.0,103420.0,1.03096757]
[1747253418765,0.15835529,103430.0,103420.0,1.1524756]
[1747253422385,0.18905529,103430.0,103420.0,1.1524756]
[1747253428190,0.21925529,103430.0,103420.0,1.1524756]
[1747253428890,0.41259369,103430.0,103420.0,0.90945954]
[1747253429195,0.21925529,103430.0,103420.0,1.03096757]
[1747253430083,0.21925529,103430.0,103420.0,0.90945954]
[1747253430288,0.41259369,103430.0,103420.0,1.03096757]
[1747253430489,0.21925529,103430.0,103420.0,1.03096757]
[1747253430989,0.21925529,103430.0,103420.0,0.67016757]
[1747253431189,0.21925529,103430.0,103420.0,1.39176757]
[1747253432287,0.21925529,103430.0,103420.0,0.67016757]
[1747253432490,0.21925529,103430.0,103420.0,1.39176757]
[1747253434795,0.21905506,103430.0,103420.0,1.39176757]
[1747253436396,0.53390149,103430.0,103420.0,1.20665954]
[1747253436585,0.56460149,103430.0,103420.0,1.20665954]
[1747253437185,0.56460149,103430.0,103420.0,1.04465954]
[1747253437686,0.71460149,103430.0,103420.0,1.04465954]
[1747253437891,0.56460149,103430.0,103420.0,1.04465954]
[1747253438286,0.44309346,103430.0,103420.0,1.04465954]
[1747253438795,0.56460149,103430.0,103420.0,1.04465954]
[1747253439006,0.56460149,103430.0,103420.0,1.19181562]
[1747253440207,0.89995446,103430.0,103420.0,0.24485852]
[1747253440410,0.89995446,103430.0,103420.0,0.14815608]
[1747253441108,1.06195446,103430.0,103420.0,0.14815608]
[1747253441703,0.94044643,103430.0,103420.0,0.14815608]
[1747253442005,0.94044643,103430.0,103420.0,0.001]
[1747253442307,0.94044643,103430.0,103420.0,0.1943571]
[1747253442708,0.94044643,103430.0,103420.0,0.001]
[1747253443217,0.94044643,103430.0,103420.0,0.1943571]
[1747253444313,1.06195446,103430.0,103420.0,0.001]
[1747253445814,1.15864246,103430.0,103420.0,0.001]
[1747253452117,1.51944246,103430.0,103420.0,0.001]
[1747253457525,0.1933758,103410.0,103400.0,0.49329156]
[1747253457715,1.11592383,103410.0,103400.0,0.49329156]
[1747253457912,1.21102383,103410.0,103400.0,0.49329156]
[1747253458108,1.37302383,103410.0,103400.0,0.14673619]
[1747253458418,1.37302383,103410.0,103400.0,0.11443619]
[1747253459023,1.37502383,103410.0,103400.0,0.11443619]
[1747253459214,1.37502383,103410.0,103400.0,0.14633619]
[1747253459620,1.37702383,103410.0,103400.0,0.14633619]
[1747253460211,1.21502383,103410.0,103400.0,0.14633619]
[1747253464527,1.21502383,103410.0,103400.0,0.17833619]
[1747253468928,1.21502383,103410.0,103400.0,0.20853619]
[1747253474230,1.21502383,103410.0,103400.0,0.17833619]
[1747253474533,1.21502383,103410.0,103400.0,0.14633619]
[1747253476819,1.0931558,103410.0,103400.0,0.14633619]
[1747253477024,1.21466383,103410.0,103400.0,0.20983619]
[1747253477225,0.76368383,103410.0,103400.0,0.20983619]
[1747253477529,1.18436383,103410.0,103400.0,0.20983619]
[1747253479334,1.21616383,103410.0,103400.0,0.20983619]
[1747253479736,1.00580383,103410.0,103400.0,0.20983619]
[1747253479940,1.21616383,103410.0,103400.0,0.20983619]
[1747253480130,0.79548383,103410.0,103400.0,0.20983619]
[1747253480339,1.21616383,103410.0,103400.0,0.20983619]
[1747253483238,1.21616383,103410.0,103400.0,0.2154569]
[1747253487245,1.21616383,103410.0,103400.0,0.20983619]
[1747253487934,1.21616383,103410.0,103400.0,0.20964463]
[1747253490447,1.21616383,103410.0,103400.0,0.20983619]
[1747253497252,1.0946558,103410.0,103400.0,0.20983619]
[1747253497439,1.21616383,103410.0,103400.0,0.20983619]
[1747253498548,1.21616383,103410.0,103400.0,0.2154569]
[1747253499540,1.21616383,103410.0,103400.0,0.20983619]
[1747253500851,1.21616383,103410.0,103400.0,0.17743619]
[1747253501351,1.21616383,103410.0,103400.0,0.14633619]
[1747253502151,1.21616383,103410.0,103400.0,0.11443619]
[1747253504249,1.21616383,103410.0,103400.0,0.13089156]
[1747253504446,1.0946558,103410.0,103400.0,0.13089156]
[1747253504651,1.21616383,103410.0,103400.0,0.13089156]
[1747253513151,0.76368383,103410.0,103400.0,0.55349156]
[1747253513359,0.84412383,103410.0,103400.0,0.55349156]
[1747253514358,0.84412383,103410.0,103400.0,0.71549156]
[1747253519147,0.42368383,103410.0,103400.0,0.71549156]
[1747253519457,0.84412383,103410.0,103400.0,0.71549156]
[1747253521462,0.84412383,103410.0,103400.0,0.71549156]
[1747253525268,0.7226158,103410.0,103400.0,0.71549156]
[1747253525563,1.17412383,103410.0,103400.0,0.71549156]
[1747253531757,0.8426158,103410.0,103400.0,0.71549156]
[1747253531957,1.17412383,103410.0,103400.0,0.71549156]
[1747253538073,1.17412383,103410.0,103400.0,0.55349156]
[1747253539269,1.17412383,103410.0,103400.0,0.71549156]
[1747253539770,1.0526158,103410.0,103400.0,0.71549156]
[1747253540067,1.17412383,103410.0,103400.0,0.71549156]
[1747253540367,1.20652383,103410.0,103400.0,0.71549156]
[1747253542168,1.20652383,103410.0,103400.0,0.55349156]
[1747253543064,1.20652383,103410.0,103400.0,0.19269156]
[1747253543270,1.20652383,103410.0,103400.0,0.55349156]
[1747253550073,1.20652383,103410.0,103400.0,0.71549156]
[1747253552172,1.20652383,103410.0,103400.0,0.55349156]
[1747253552376,1.0850158,103410.0,103400.0,0.55349156]
[1747253552577,1.20652383,103410.0,103400.0,0.55349156]
[1747253554073,1.20652383,103410.0,103400.0,0.71549156]
[1747253555181,1.20652383,103410.0,103400.0,0.55349156]
[1747253556880,0.2621758,103410.0,103400.0,0.74688606]
[1747253557085,0.7621358,103410.0,103400.0,0.90888606]
[1747253557585,0.88364383,103410.0,103400.0,0.90888606]
[1747253558185,0.88364383,103410.0,103400.0,0.71549156]
[1747253558974,0.88364383,103410.0,103400.0,0.35469156]
[1747253559175,0.88364383,103410.0,103400.0,0.71549156]
[1747253559674,0.88364383,103410.0,103400.0,0.90888606]
[1747253562286,0.88364383,103410.0,103400.0,0.71549156]
[1747253562478,1.13364383,103410.0,103400.0,0.71549156]
[1747253564692,1.16484383,103410.0,103400.0,0.71549156]
[1747253565491,1.16484383,103410.0,103400.0,0.7153]
[1747253565692,1.16484383,103410.0,103400.0,0.9086945]
[1747253567090,1.0433358,103410.0,103400.0,0.9086945]
[1747253567289,0.86484383,103410.0,103400.0,0.9086945]
[1747253567790,0.86484383,103410.0,103400.0,0.90888606]
[1747253569797,0.7433358,103410.0,103400.0,0.90888606]
[1747253569997,1.18484383,103410.0,103400.0,0.90888606]
[1747253570688,1.18448383,103410.0,103400.0,0.90888606]
[1747253571296,0.76488383,103410.0,103400.0,0.90888606]
[1747253571493,1.18448383,103410.0,103400.0,0.90888606]
[1747253576089,1.18448383,103410.0,103400.0,0.71549156]
[1747253576388,1.18448383,103410.0,103400.0,0.52199156]
[1747253576601,1.18444383,103410.0,103400.0,0.52199156]
[1747253576810,1.18444383,103410.0,103400.0,0.71538606]
[1747253577799,1.0629358,103410.0,103400.0,0.71538606]
[1747253578005,1.18444383,103410.0,103400.0,0.74728606]
[1747253578205,1.18444383,103410.0,103400.0,0.90928606]
[1747253579104,1.18444383,103410.0,103400.0,0.74728606]
[1747253579304,1.18444383,103410.0,103400.0,0.38648606]
[1747253580108,1.18444383,103410.0,103400.0,0.54848606]
[1747253581405,1.18444383,103410.0,103400.0,0.38648606]
[1747253582410,1.18444383,103410.0,103400.0,0.19309156]
[1747253582604,1.54524383,103410.0,103400.0,0.16119156]
[1747253582807,1.66675186,103410.0,103400.0,0.10019156]
[1747253583310,1.76345986,103410.0,103400.0,0.10019156]
[1747253583495,1.66675186,103410.0,103400.0,0.11445371]
[1747253585217,1.82875186,103410.0,103400.0,0.11445371]
[1747253586209,1.66675186,103410.0,103400.0,0.00765411]
[1747253586511,0.1933945,103400.0,103390.0,2e-08]
[1747253586715,1.48791189,103400.0,103390.0,2e-08]
[1747253587512,2.58511189,103400.0,103390.0,2e-08]
[1747253587810,2.58611189,103400.0,103390.0,2e-08]
[1747253588109,2.74811189,103400.0,103390.0,2e-08]
[1747253588308,2.74811189,103400.0,103370.0,0.73773154]
[1747253588309,0.43644796,103380.0,103370.0,0.37693154]
[1747253588512,1.20592796,103380.0,103370.0,0.34433154]
[1747253588705,1.29812796,103380.0,103370.0,0.34433154]
[1747253589304,1.65892796,103380.0,103370.0,0.31673684]
[1747253589803,1.4159119,103380.0,103370.0,0.003]
[1747253590015,1.65892796,103380.0,103370.0,0.003]
[1747253590209,1.0551519,103380.0,103370.0,0.003]
[1747253590516,0.1934506,103370.0,103360.0,0.0911]
[1747253590711,0.75845863,103370.0,103360.0,0.4519]
[1747253591214,0.75845863,103370.0,103360.0,0.6139]
[1747253591415,0.76832334,103370.0,103360.0,0.6139]
[1747253592415,0.76832334,103370.0,103360.0,0.6149]
[1747253592606,0.64681531,103370.0,103360.0,0.6149]
[1747253593016,0.76832334,103370.0,103360.0,0.6149]
[1747253593211,0.76832334,103370.0,103360.0,0.6169]
[1747253594716,1.06633531,103370.0,103360.0,0.6169]
[1747253595016,1.18784334,103370.0,103360.0,0.6169]
[1747253595316,1.20223929,103370.0,103360.0,0.6169]
[1747253597319,0.98727126,103370.0,103360.0,0.93187743]
[1747253597817,1.10849929,103370.0,103360.0,0.8103694]
[1747253598221,1.14149929,103370.0,103360.0,0.8103694]
[1747253598519,1.14149929,103370.0,103360.0,0.82473288]
[1747253599314,0.79149929,103370.0,103360.0,0.82473288]
[1747253599918,0.79149929,103370.0,103360.0,0.83035359]
[1747253602013,0.82199929,103370.0,103360.0,0.83035359]
[1747253606421,0.70049126,103370.0,103360.0,0.83035359]
[1747253606618,0.82199929,103370.0,103360.0,0.83035359]
[1747253608422,0.82199929,103370.0,103360.0,0.46955359]
[1747253608623,0.82199929,103370.0,103360.0,0.83035359]
[1747253613731,0.82199929,103370.0,103360.0,0.83035359]
[1747253614030,0.89199929,103370.0,103360.0,0.83035359]
[1747253616526,0.92289929,103370.0,103360.0,0.83035359]
[1747253618225,0.85289929,103370.0,103360.0,0.63688419]
[1747253618431,1.21289929,103370.0,103360.0,0.63688419]
[1747253618729,1.21289929,103370.0,103360.0,0.83035359]
[1747253619626,1.09139126,103370.0,103360.0,0.83035359]
[1747253619932,1.21289929,103370.0,103360.0,0.83035359]
[1747253620230,1.21281929,103370.0,103360.0,0.83035359]
[1747253621030,1.21281929,103370.0,103360.0,0.63688419]
[1747253622432,1.21281929,103370.0,103360.0,0.83035359]
[1747253630239,1.21281929,103370.0,103360.0,0.81599011]
[1747253631442,1.21281929,103370.0,103360.0,0.45519011]
[1747253631742,1.21281929,103370.0,103360.0,0.81599011]
[1747253634051,0.79361929,103370.0,103360.0,0.81599011]
[1747253634244,0.01439595,103370.0,103360.0,1.15575071]
[1747253634435,0.7424313,103380.0,103370.0,0.1934506]
[1747253634634,0.7907928,103380.0,103370.0,0.76785863]
[1747253634837,0.80533895,103380.0,103370.0,0.76785863]
[1747253635038,0.83693895,103380.0,103370.0,0.86460317]
[1747253635233,0.83693895,103380.0,103370.0,1.02660317]
[1747253638548,0.84643324,103380.0,103370.0,1.02660317]
[1747253640448,0.96794127,103380.0,103370.0,1.02660317]
[1747253640750,0.96794127,103380.0,103370.0,0.90509514]
[1747253643750,0.96794127,103380.0,103370.0,0.90509514]
[1747253645351,0.84643324,103380.0,103370.0,1.02660317]
[1747253645542,0.84643324,103380.0,103370.0,0.90509514]
[1747253645748,0.84643324,103380.0,103370.0,0.91071585]
[1747253646247,0.96794127,103380.0,103370.0,0.91071585]
[1747253648652,0.96794127,103380.0,103370.0,0.90509514]
[1747253649756,0.96794127,103380.0,103370.0,0.91071585]
[1747253652656,0.84643324,103380.0,103370.0,0.91071585]
[1747253652850,0.96794127,103380.0,103370.0,0.91071585]
[1747253654360,0.84643324,103380.0,103370.0,1.03222388]
[1747253654658,0.84627324,103380.0,103370.0,1.03222388]
[1747253655066,0.42747324,103380.0,103370.0,1.03222388]
[1747253655248,0.83677895,103380.0,103370.0,1.03222388]
[1747253655662,0.83677895,103380.0,103370.0,0.91071585]
[1747253656060,0.83677895,103380.0,103370.0,1.03222388]
[1747253657356,0.83677895,103380.0,103370.0,0.91071585]
[1747253657557,0.86897895,103380.0,103370.0,0.91071585]
[1747253659562,0.87874956,103380.0,103370.0,0.91071585]
[1747253660561,0.87850956,103380.0,103370.0,0.91071585]
[1747253662465,0.87850956,103380.0,103370.0,1.27151585]
[1747253665367,0.87850956,103380.0,103370.0,1.54017996]
[1747253665969,0.41797895,103380.0,103370.0,1.54017996]
[1747253666162,0.57889745,103380.0,103370.0,1.54017996]
[1747253667267,0.36961745,103380.0,103370.0,1.54017996]
[1747253667468,0.57889745,103380.0,103370.0,1.54017996]
[1747253668869,0.58846245,103380.0,103370.0,1.54017996]
[1747253672770,0.57889745,103380.0,103370.0,1.54017996]
[1747253676367,0.57889745,103380.0,103370.0,1.41867193]
[1747253676558,0.57889745,103380.0,103370.0,1.54017996]
[1747253682478,0.57885745,103380.0,103370.0,1.54017996]
[1747253683972,0.36961745,103380.0,103370.0,1.54017996]
[1747253684174,0.57885745,103380.0,103370.0,1.41867193]
[1747253684378,0.73116548,103380.0,103370.0,1.41867193]
[1747253684879,0.73116548,103380.0,103370.0,1.38847193]
[1747253690477,0.73116548,103380.0,103370.0,1.41867193]
[1747253694096,0.60965745,103380.0,103370.0,1.41867193]
[1747253694283,0.60965745,103380.0,103370.0,1.54017996]
[1747253694785,0.40041745,103380.0,103370.0,1.54017996]
[1747253694987,0.81853745,103380.0,103370.0,1.54017996]
[1747253701979,0.57869745,103380.0,103370.0,1.54017996]
[1747253702183,1.437666,103400.0,103370.0,1.46823739]
[1747253702487,0.2261132,103390.0,103380.0,0.55270433]
[1747253702688,0.1934132,103390.0,103380.0,1.32266033]
[1747253702985,0.6449442,103400.0,103390.0,0.1934132]
[1747253703190,0.8539442,103400.0,103390.0,0.6469132]
[1747253703578,0.8539442,103400.0,103390.0,0.8651377]
[1747253703885,0.86364604,103400.0,103390.0,0.8651377]
[1747253704086,0.86364604,103400.0,103390.0,0.74362967]
[1747253704279,0.98515407,103400.0,103390.0,0.87442967]
[1747253704479,1.00915407,103400.0,103390.0,0.87442967]
[1747253704680,1.1336621,103400.0,103390.0,0.7463132]
[1747253704984,0.55394234,103400.0,103390.0,0.9645377]
[1747253705179,0.6808905,103400.0,103390.0,1.0272377]
[1747253705378,0.0734,103400.0,103390.0,1.0272377]
[1747253705682,0.0877212,103400.0,103390.0,1.0272377]
[1747253705886,0.0233212,103400.0,103390.0,1.0272377]
[1747253706485,0.2167157,103400.0,103390.0,1.0272377]
[1747253706691,0.0233212,103400.0,103390.0,1.0272377]
[1747253706890,0.2167157,103400.0,103390.0,1.0272377]
[1747253707290,0.2493157,103400.0,103390.0,1.0272377]
[1747253707881,0.2795157,103400.0,103390.0,1.0272377]
[1747253715186,0.43282373,103400.0,103390.0,0.68151647]
[1747253715491,0.80433176,103400.0,103390.0,0.7162132]
[1747253715997,0.68282373,103400.0,103390.0,0.7162132]
[1747253716298,0.5613157,103400.0,103390.0,0.5542132]
[1747253716497,0.5613157,103400.0,103390.0,0.6153132]
[1747253716698,0.7292357,103400.0,103390.0,0.8660377]
[1747253716993,0.2795157,103400.0,103390.0,0.8660377]
[1747253717197,0.4883957,103400.0,103390.0,1.0280377]
[1747253718082,0.2795157,103400.0,103390.0,1.0280377]
[1747253720997,0.2795157,103400.0,103390.0,1.03365841]
[1747253725003,0.3298157,103400.0,103390.0,0.91215038]
[1747253725503,0.3298157,103400.0,103390.0,1.03365841]
[1747253730710,0.3298157,103400.0,103390.0,1.39445841]
[1747253733313,0.3298157,103400.0,103390.0,0.67285841]
[1747253733612,0.3298157,103400.0,103390.0,1.39445841]
[1747253734002,0.3298157,103400.0,103390.0,1.27295038]
[1747253734202,0.3298157,103400.0,103390.0,1.39445841]
[1747253738213,0.3298157,103400.0,103390.0,1.3888377]
[1747253739123,0.3298157,103400.0,103390.0,1.39445841]
[1747253750818,0.3298157,103400.0,103390.0,1.27295038]
[1747253752213,0.3298157,103400.0,103390.0,1.42010646]
[1747253754720,0.3298157,103400.0,103390.0,0.69850646]
[1747253754921,0.3298157,103400.0,103390.0,1.42010646]
[1747253755919,0.45132373,103400.0,103390.0,1.42010646]
[1747253758217,0.45132373,103400.0,103390.0,0.69850646]
[1747253758422,0.45132373,103400.0,103390.0,1.42010646]
[1747253759226,0.3298157,103400.0,103390.0,1.42010646]
[1747253763020,0.3298157,103400.0,103390.0,1.05930646]
[1747253763226,0.3298157,103400.0,103390.0,1.42010646]
[1747253763724,0.3298157,103400.0,103390.0,0.69850646]
[1747253763924,0.3298157,103400.0,103390.0,1.42010646]
[1747253769030,0.2995157,103400.0,103390.0,1.42010646]
[1747253770829,0.2995157,103400.0,103390.0,1.41448575]
[1747253771728,0.2995157,103400.0,103390.0,1.42010646]
[1747253773620,0.2995157,103400.0,103390.0,1.41448575]
[1747253775129,0.2795157,103400.0,103390.0,1.53599378]
[1747253775621,0.66854593,103420.0,103410.0,0.1933758]
[1747253775815,0.8407179,103420.0,103410.0,0.9149758]
[1747253776029,0.8207179,103420.0,103410.0,0.9780758]
[1747253776224,0.30125778,103430.0,103420.0,0.1933571]
[1747253776422,0.49125778,103430.0,103420.0,0.70716513]
[1747253776621,0.52395778,103430.0,103420.0,0.5856571]
[1747253776930,0.64546581,103430.0,103420.0,0.68234552]
[1747253777128,0.67586581,103430.0,103420.0,0.90924552]
[1747253777529,0.68086581,103430.0,103420.0,0.90924552]
[1747253778323,0.69567552,103430.0,103420.0,0.90924552]
[1747253778524,0.69967552,103430.0,103420.0,0.90924552]
[1747253778731,0.73007552,103430.0,103420.0,0.8125571]
[1747253779128,0.73007552,103430.0,103420.0,0.6505571]
[1747253779823,0.73007552,103430.0,103420.0,0.65617781]
[1747253780224,0.93851552,103430.0,103420.0,0.65617781]
[1747253782128,0.93851552,103430.0,103420.0,0.29537781]
[1747253782328,0.93851552,103430.0,103420.0,1.17897781]
[1747253783134,0.93851552,103430.0,103420.0,1.01697781]
[1747253784149,0.60846725,103430.0,103420.0,1.30048584]
[1747253784437,0.01035089,103430.0,103420.0,1.51868229]
[1747253784837,0.01035089,103430.0,103420.0,1.52851591]
[1747253785537,0.009,103430.0,103420.0,1.52851591]
[1747253787734,0.009,103430.0,103420.0,1.40700788]
[1747253787934,0.32384643,103430.0,103420.0,1.27566623]
[1747253788142,0.42554643,103430.0,103420.0,1.27566623]
[1747253788638,0.45694643,103430.0,103420.0,1.27566623]
[1747253788941,0.45694643,103430.0,103420.0,1.27004552]
[1747253789138,0.45694643,103430.0,103420.0,1.10804552]
[1747253790141,0.45694643,103430.0,103420.0,1.27004552]
[1747253791139,0.009,103430.0,103420.0,1.22955355]
[1747253791332,0.2023384,103430.0,103420.0,1.22955355]
[1747253791941,0.2023384,103430.0,103420.0,1.23517426]
[1747253792134,0.2023384,103430.0,103420.0,1.39717426]
[1747253792335,0.2645384,103430.0,103420.0,1.39717426]
[1747253793342,0.2645384,103430.0,103420.0,1.27566623]
[1747253795945,0.2645384,103430.0,103420.0,1.39717426]
[1747253797841,0.2023384,103430.0,103420.0,1.39717426]
[1747253798041,0.009,103430.0,103420.0,1.39717426]
[1747253798237,0.009,103430.0,103420.0,1.51868229]
[1747253799156,0.009,103430.0,103420.0,3.01868229]
[1747253804040,0.0624,103440.0,103430.0,0.1933384]
[1747253804352,0.002,103440.0,103430.0,0.77234643]
[1747253804743,0.002,103440.0,103430.0,0.86903485]
[1747253805150,0.002,103440.0,103430.0,1.03103485]
[1747253805340,0.1953197,103440.0,103430.0,1.03103485]
[1747253805740,0.2314197,103440.0,103430.0,1.03103485]
[1747253806939,0.2364197,103440.0,103430.0,1.03103485]
[1747253807140,0.2364197,103440.0,103430.0,1.39183485]
[1747253808041,0.0431,103440.0,103430.0,1.39183485]
[1747253809450,0.2364197,103440.0,103430.0,1.39183485]
[1747253809641,0.0431,103440.0,103430.0,1.39183485]
[1747253810550,0.2364197,103440.0,103430.0,1.39183485]
[1747253810754,0.2666197,103440.0,103430.0,1.39183485]
[1747253811253,0.2666197,103440.0,103430.0,1.39745556]
[1747253815154,0.0733,103440.0,103430.0,1.39745556]
[1747253815353,0.013,103440.0,103430.0,1.39745556]
[1747253815551,0.39311229,103450.0,103440.0,0.1933197]
[1747253815746,0.39311229,103450.0,103440.0,0.74112773]
[1747253815747,0.27160426,103450.0,103440.0,0.74112773]
[1747253815948,0.27160426,103450.0,103440.0,0.77342773]
[1747253816249,0.27160426,103450.0,103440.0,1.03209745]
[1747253817156,0.27260426,103450.0,103440.0,1.03209745]
[1747253818348,0.27260426,103450.0,103440.0,0.91058942]
[1747253820158,0.30420426,103450.0,103440.0,0.91058942]
[1747253820355,0.42571229,103450.0,103440.0,0.87828942]
[1747253820551,0.43571229,103450.0,103440.0,0.84558942]
[1747253821251,0.43571229,103450.0,103440.0,0.68358942]
[1747253826161,0.43571229,103450.0,103440.0,0.65078942]
[1747253826862,0.43571229,103450.0,103440.0,0.28998942]
[1747253827064,0.43571229,103450.0,103440.0,1.01158942]
[1747253827365,0.43571229,103450.0,103440.0,1.04428942]
[1747253832068,0.85395229,103450.0,103440.0,0.5541197]
[1747253832264,0.85395229,103450.0,103440.0,0.3608]
[1747253832566,0.1933197,103440.0,103430.0,0.9001955]
[1747253832769,0.93853576,103440.0,103430.0,0.5393955]
[1747253833068,0.93853576,103440.0,103430.0,0.99686522]
[1747253834071,0.93853576,103440.0,103430.0,0.99786522]
[1747253834470,0.93853576,103440.0,103430.0,1.02956522]
[1747253834770,0.93853576,103440.0,103430.0,0.6854256]
[1747253834975,0.81702773,103440.0,103430.0,0.6854256]
[1747253837271,0.93853576,103440.0,103430.0,0.6854256]
[1747253838172,0.81702773,103440.0,103430.0,0.6854256]
[1747253842677,0.81702773,103440.0,103430.0,0.7187256]
[1747253844578,0.4955197,103440.0,103430.0,0.7187256]
[1747253844779,0.94702773,103440.0,103430.0,0.7515256]
[1747253845082,0.98702773,103440.0,103430.0,0.7515256]
[1747253845379,1.19518773,103440.0,103430.0,0.7515256]
[1747253848577,0.82518773,103440.0,103430.0,0.7515256]
[1747253848780,1.18518773,103440.0,103430.0,0.7515256]
[1747253849881,0.82518773,103440.0,103430.0,0.7515256]
[1747253850076,1.19518773,103440.0,103430.0,0.7515256]
[1747253851383,1.31669576,103440.0,103430.0,0.7515256]
[1747253853485,1.31769576,103440.0,103430.0,0.7515256]
[1747253854076,1.31769576,103440.0,103430.0,0.7505256]
[1747253861189,1.31769576,103440.0,103430.0,0.3897256]
[1747253861386,1.31769576,103440.0,103430.0,0.7505256]
[1747253863691,1.0746797,103440.0,103430.0,0.7505256]
[1747253864084,1.31769576,103440.0,103430.0,0.9125256]
[1747253865180,1.31769576,103440.0,103430.0,0.7505256]
[1747253867993,1.31769576,103440.0,103430.0,0.3897256]
[1747253868182,1.31769576,103440.0,103430.0,0.7505256]
[1747253868183,1.19618773,103440.0,103430.0,0.7505256]
[1747253868593,1.0746797,103440.0,103430.0,0.7505256]
[1747253868982,1.19618773,103440.0,103430.0,0.7505256]
[1747253873695,1.31769576,103440.0,103430.0,0.7505256]
[1747253875300,1.31769576,103440.0,103430.0,0.3897256]
[1747253875495,1.31769576,103440.0,103430.0,0.7505256]
[1747253878731,1.19618773,103440.0,103430.0,0.7505256]
[1747253880299,1.31769576,103440.0,103430.0,0.7505256]
[1747253880705,1.19618773,103440.0,103430.0,0.7505256]
[1747253881000,1.19618773,103440.0,103430.0,0.7505417]
[1747253881297,1.31769576,103440.0,103430.0,0.42773358]
[1747253881509,1.31769576,103440.0,103430.0,0.62107198]
[1747253881801,1.43920379,103440.0,103430.0,0.00193358]
[1747253882003,1.31769576,103440.0,103430.0,0.00193358]
[1747253882397,1.43920379,103440.0,103430.0,0.00193358]
[1747253882605,1.31769576,103440.0,103430.0,0.00193358]
[1747253882898,0.90133576,103440.0,103430.0,0.00193358]
[1747253883096,0.90133576,103440.0,103430.0,0.03503358]
[1747253883097,1.31749576,103440.0,103430.0,0.03503358]
[1747253883403,1.31749576,103440.0,103430.0,0.06693358]
[1747253888000,1.31749576,103440.0,103430.0,0.65297198]
[1747253888001,0.8663997,103440.0,103430.0,0.65297198]
[1747253888196,1.0744397,103440.0,103430.0,0.65297198]
[1747253888406,1.19594773,103440.0,103430.0,0.65859269]
[1747253889217,1.19594773,103440.0,103430.0,0.82059269]
[1747253891119,1.19594773,103440.0,103430.0,0.65859269]
[1747253891421,1.19594773,103440.0,103430.0,0.65297198]
[1747253893115,1.0744397,103440.0,103430.0,0.81497198]
[1747253893318,0.89594773,103440.0,103430.0,0.81497198]
[1747253893613,0.93594773,103440.0,103430.0,0.81497198]
[1747253893916,0.7144397,103440.0,103430.0,0.81497198]
[1747253894114,0.2559197,103440.0,103430.0,0.93648001]
[1747253894434,0.1943197,103440.0,103430.0,1.03315908]
[1747253895918,0.1943197,103440.0,103430.0,1.03415908]
[1747253896314,0.1933197,103440.0,103430.0,1.03415908]
[1747253896514,0.1933197,103440.0,103430.0,1.03977979]
[1747253897617,0.36666846,103450.0,103440.0,0.1933197]
[1747253897818,0.30446846,103450.0,103440.0,0.77222773]
[1747253898221,0.30446846,103450.0,103440.0,1.03089745]
[1747253899515,0.30546846,103450.0,103440.0,1.03089745]
[1747253901128,0.01550326,103450.0,103440.0,1.03089745]
[1747253901329,0.20880426,103450.0,103440.0,1.03089745]
[1747253901536,0.01550326,103450.0,103440.0,1.15240548]
[1747253902034,0.20880426,103450.0,103440.0,1.15240548]
[1747253902622,0.20880426,103450.0,103440.0,1.03089745]
[1747253907432,0.001,103450.0,103440.0,1.15240548]
[1747253913632,0.001,103450.0,103440.0,2.65240548]
[1747253914340,0.001,103450.0,103440.0,2.53089745]
[1747253914730,0.194301,103450.0,103440.0,2.53089745]
[1747253915945,0.194301,103450.0,103440.0,2.89731816]
[1747253916133,0.194301,103450.0,103440.0,3.01882619]
[1747253916842,0.001,103450.0,103440.0,3.01882619]
[1747253917636,0.0329,103450.0,103440.0,3.01882619]
[1747253919045,0.226201,103450.0,103440.0,3.01882619]
[1747253920135,0.258001,103450.0,103440.0,3.01882619]
[1747253921744,0.258001,103450.0,103440.0,2.89731816]